bitfinex-derivatives/quotes_BTCF0:USTF0_20240814
["timestamp","ask_amount","ask_price","bid_price","bid_amount"]
[1723636661593,0.00024492,61263.0,61258.0,0.46574309]
[1723636661796,0.00024492,61263.0,61259.0,0.14210539]
[1723636662095,0.00724492,61263.0,61258.0,0.46574309]
[1723636662287,0.00724492,61263.0,61259.0,0.14210539]
[1723636662488,0.00724492,61263.0,61258.0,0.46574309]
[1723636662489,0.00724492,61263.0,61258.0,0.36903195]
[1723636662784,0.00724492,61263.0,61259.0,0.14210498]
[1723636663294,0.01424492,61263.0,61260.0,0.0591]
[1723636663686,0.03424492,61263.0,61260.0,0.0591]
[1723636663883,0.03424492,61263.0,61261.0,0.0592]
[1723636664085,0.04824492,61263.0,61261.0,0.0592]
[1723636664487,0.04824492,61263.0,61261.0,0.94888]
[1723636664683,0.04824492,61263.0,61262.0,0.77178]
[1723636664991,0.02024492,61263.0,61262.0,1.08387571]
[1723636665289,0.3608,61271.0,61262.0,1.48387571]
[1723636665598,0.3608,61278.0,61270.0,0.3608]
[1723636665790,0.3608,61278.0,61270.0,0.45744346]
[1723636665990,0.3608,61278.0,61271.0,0.23871964]
[1723636666187,0.3608,61278.0,61272.0,0.14207618]
[1723636666501,0.3608,61278.0,61270.0,0.45744346]
[1723636666685,0.3608,61278.0,61271.0,0.1420722]
[1723636666992,0.3608,61278.0,61270.0,0.3608]
[1723636667191,0.3608,61278.0,61271.0,0.14207204]
[1723636667396,0.3608,61278.0,61270.0,0.3608]
[1723636668192,0.3748,61278.0,61270.0,0.5218]
[1723636669099,0.3748,61278.0,61270.0,0.53208986]
[1723636669495,0.014,61278.0,61275.0,0.3608]
[1723636669695,1e-08,61281.0,61276.0,0.1225]
[1723636669886,1e-08,61281.0,61280.0,0.2821]
[1723636670293,1e-08,61281.0,61280.0,0.6429]
[1723636670490,1e-08,61281.0,61280.0,1.53246]
[1723636671487,1e-08,61281.0,61280.0,1.68246]
[1723636672089,0.4197,61301.0,61280.0,0.7939]
[1723636672394,0.4197,61301.0,61291.0,0.3608]
[1723636672602,0.4197,61301.0,61292.0,0.1159]
[1723636672797,0.4197,61301.0,61292.0,0.12425266]
[1723636672995,0.1185,61311.0,61292.0,0.12425266]
[1723636672996,0.0613,61311.0,61300.0,0.3608]
[1723636673200,0.0613,61311.0,61301.0,0.2821]
[1723636673996,0.0613,61311.0,61300.0,0.3608]
[1723636674699,0.0613,61311.0,61305.0,0.3608]
[1723636675006,0.00015894,61312.0,61305.0,0.3608]
[1723636675302,0.00015894,61312.0,61306.0,0.0571]
[1723636675509,0.01070617,61312.0,61311.0,0.3608]
[1723636675697,0.00015894,61312.0,61311.0,0.3608]
[1723636677207,0.02851026,61312.0,61311.0,0.12438438]
[1723636678505,0.02851026,61312.0,61311.0,0.12538438]
[1723636678704,0.02851026,61312.0,61311.0,0.13553997]
[1723636679495,0.02657465,61312.0,61311.0,0.13553997]
[1723636679695,0.00015894,61312.0,61311.0,0.13553997]
[1723636680904,0.02657465,61312.0,61311.0,0.13653997]
[1723636681305,0.02657465,61312.0,61311.0,1.17585997]
[1723636681507,0.08075737,61312.0,61311.0,1.17585997]
[1723636681900,0.00015894,61312.0,61311.0,1.17585997]
[1723636683104,0.00015894,61312.0,61311.0,1.17485997]
[1723636683298,0.00015894,61312.0,61311.0,1.17385997]
[1723636683714,0.00015894,61312.0,61311.0,1.17485997]
[1723636683715,0.00615894,61312.0,61311.0,1.17485997]
[1723636683909,0.00615894,61312.0,61311.0,0.28553997]
[1723636684104,0.00615894,61312.0,61311.0,0.13553997]
[1723636684300,0.00615894,61312.0,61311.0,0.001]
[1723636684508,0.08675737,61312.0,61305.0,0.3608]
[1723636684709,0.06442441,61308.0,61305.0,0.5208]
[1723636684904,0.06442441,61306.0,61301.0,0.51138]
[1723636685103,0.06442725,61305.0,61303.0,0.3608]
[1723636685405,0.0627,61311.0,61303.0,0.3608]
[1723636685406,0.3608,61309.0,61303.0,0.3608]
[1723636686615,0.3608,61309.0,61305.0,0.004]
[1723636687611,0.3608,61309.0,61303.0,0.3608]
[1723636687612,0.3608,61309.0,61303.0,0.3668]
[1723636688603,0.3648,61309.0,61303.0,0.3668]
[1723636690511,0.3648,61309.0,61303.0,0.3608]
[1723636690706,0.3648,61309.0,61305.0,0.002]
[1723636691304,0.3648,61309.0,61303.0,0.3608]
[1723636691511,0.3608,61309.0,61303.0,0.3608]
[1723636691902,0.3638,61309.0,61303.0,0.3648]
[1723636692617,0.3638,61309.0,61305.0,0.001]
[1723636693115,0.3658,61309.0,61305.0,0.001]
[1723636694209,0.3658,61309.0,61303.0,0.3608]
[1723636694610,0.3658,61309.0,61301.0,0.01037866]
[1723636694814,0.3658,61309.0,61301.0,0.15]
[1723636695013,0.3608,61309.0,61301.0,0.15]
[1723636695711,0.3688,61309.0,61301.0,0.15]
[1723636696008,0.3698,61309.0,61305.0,0.001]
[1723636697816,0.3658,61309.0,61305.0,0.001]
[1723636698720,0.3658,61309.0,61301.0,0.04805169]
[1723636698925,0.3658,61309.0,61301.0,0.19805169]
[1723636699319,0.3658,61309.0,61302.0,0.04805169]
[1723636699621,0.3658,61309.0,61305.0,0.001]
[1723636700415,0.3658,61309.0,61307.0,0.2821]
[1723636700718,0.001,61309.0,61307.0,0.4421]
[1723636700917,0.001,61309.0,61308.0,0.56896058]
[1723636701221,0.001,61309.0,61308.0,0.64932]
[1723636701416,0.005,61309.0,61308.0,1.04932]
[1723636702111,0.00015894,61312.0,61308.0,1.04932]
[1723636702311,0.0619,61327.0,61311.0,0.3608]
[1723636702511,0.00108,61328.0,61323.0,0.3608]
[1723636702721,0.0594,61331.0,61323.0,0.3608]
[1723636703311,0.0594,61331.0,61323.0,0.36902721]
[1723636703719,0.3608,61333.0,61330.0,0.2821]
[1723636703917,0.06442725,61344.0,61330.0,0.4421]
[1723636704120,0.01018724,61342.0,61336.0,0.2821]
[1723636704314,0.01018724,61342.0,61334.0,0.3608]
[1723636704511,0.01018724,61342.0,61331.0,0.2821]
[1723636706026,0.3608,61334.0,61331.0,0.2821]
[1723636706817,0.3608,61339.0,61331.0,0.2821]
[1723636707419,0.3608,61339.0,61336.0,0.001]
[1723636707827,0.3608,61339.0,61331.0,0.2831]
[1723636708720,0.3608,61339.0,61331.0,0.2841]
[1723636709821,0.3608,61339.0,61331.0,0.2851]
[1723636710122,0.3608,61339.0,61331.0,0.2841]
[1723636710520,0.3608,61339.0,61331.0,0.2851]
[1723636711418,0.3608,61333.0,61331.0,0.003]
[1723636711624,0.0575,61332.0,61331.0,0.003]
[1723636711832,0.1182,61332.0,61331.0,0.003]
[1723636713123,0.1182,61332.0,61331.0,0.002]
[1723636714726,0.1182,61332.0,61331.0,0.001]
[1723636715025,0.60736,61332.0,61331.0,0.002]
[1723636715226,1.00736,61332.0,61323.0,0.00822721]
[1723636715433,0.3608,61324.0,61321.0,0.0002447]
[1723636716319,0.3608,61333.0,61321.0,0.5210447]
[1723636716519,0.3608,61333.0,61331.0,0.2821]
[1723636716838,0.3608,61333.0,61331.0,0.29009742]
[1723636717031,0.002,61332.0,61331.0,0.29009742]
[1723636717426,0.002,61332.0,61326.0,0.2821]
[1723636717737,0.059,61331.0,61326.0,0.2821]
[1723636718032,0.059,61331.0,61326.0,0.65087623]
[1723636718629,0.3608,61328.0,61326.0,0.00897623]
[1723636720127,0.3608,61328.0,61326.0,0.001]
[1723636720528,0.4892,61327.0,61326.0,0.001]
[1723636720928,0.8892,61327.0,61326.0,0.001]
[1723636721433,0.4892,61327.0,61321.0,0.0002447]
[1723636721634,0.3608,61322.0,61321.0,0.0002447]
[1723636723641,0.3638,61322.0,61321.0,0.0012447]
[1723636725032,1.25304,61322.0,61321.0,0.0012447]
[1723636726135,1.25304,61322.0,61313.0,0.00012082]
[1723636726436,0.3608,61314.0,61313.0,0.28222082]
[1723636727441,0.3608,61314.0,61313.0,0.00012082]
[1723636729035,0.3608,61314.0,61313.0,0.00512082]
[1723636729243,0.3628,61314.0,61313.0,0.00512082]
[1723636729633,0.3628,61314.0,61313.0,0.00012082]
[1723636732043,0.3628,61314.0,61313.0,0.00512082]
[1723636734444,1.25208,61314.0,61313.0,0.00512082]
[1723636734651,1.25208,61314.0,61307.0,0.0002447]
[1723636734952,0.3608,61308.0,61307.0,0.0002447]
[1723636735147,0.3608,61308.0,61307.0,1e-08]
[1723636735343,1.25012,61308.0,61307.0,1e-08]
[1723636735543,1.25025672,61308.0,61307.0,1e-08]
[1723636735756,1.25025672,61308.0,61294.0,0.04811878]
[1723636736054,0.3608,61295.0,61291.0,0.04811878]
[1723636736354,0.3608,61295.0,61285.0,0.6429]
[1723636736355,0.06304327,61294.0,61287.0,0.04811878]
[1723636736551,0.3608,61288.0,61285.0,0.04811878]
[1723636736750,0.3608,61287.0,61280.0,0.04811878]
[1723636737056,0.3608,61281.0,61280.0,0.0002447]
[1723636738862,0.3608,61281.0,61280.0,0.0142447]
[1723636740352,0.3608,61281.0,61280.0,0.0282447]
[1723636742759,0.3608,61282.0,61280.0,0.0282447]
[1723636743059,0.3608,61287.0,61280.0,0.0282447]
[1723636743264,0.0002447,61293.0,61286.0,0.2821]
[1723636744658,0.0002447,61293.0,61292.0,0.2821]
[1723636744968,0.0002447,61293.0,61292.0,0.2903991]
[1723636745358,0.0002447,61293.0,61289.0,0.01041957]
[1723636745658,0.0002447,61293.0,61287.0,0.2821]
[1723636746159,0.0002447,61293.0,61292.0,0.009]
[1723636746551,0.0002447,61293.0,61292.0,0.023]
[1723636746552,0.0589447,61293.0,61292.0,0.023]
[1723636746958,0.9483847,61293.0,61292.0,0.023]
[1723636747261,0.9483847,61293.0,61292.0,0.009]
[1723636748056,0.9483847,61293.0,61287.0,0.014]
[1723636748258,0.3608,61288.0,61287.0,0.014]
[1723636750564,0.3608,61288.0,61280.0,0.01023186]
[1723636750762,0.3608,61288.0,61280.0,0.16023186]
[1723636751572,0.3608,61288.0,61287.0,0.009]
[1723636752063,0.3608,61288.0,61287.0,0.023]
[1723636754662,0.3618,61288.0,61287.0,0.023]
[1723636756464,0.3618,61288.0,61287.0,0.014]
[1723636758167,0.85128,61288.0,61287.0,0.014]
[1723636758364,0.85128,61288.0,61287.0,0.023]
[1723636758560,0.3618,61288.0,61287.0,0.009]
[1723636758759,0.3608,61288.0,61287.0,0.009]
[1723636758967,1.25028,61288.0,61280.0,0.0002447]
[1723636759167,1.25028,61288.0,61280.0,1e-08]
[1723636759168,0.3608,61281.0,61280.0,1e-08]
[1723636759467,0.3609498,61281.0,61280.0,1e-08]
[1723636759774,1.2505098,61281.0,61280.0,1e-08]
[1723636760362,0.3609498,61281.0,61280.0,1e-08]
[1723636762368,0.3609498,61281.0,61280.0,0.00100001]
[1723636763061,0.3639498,61281.0,61280.0,1e-08]
[1723636765871,0.3639498,61281.0,61280.0,0.00100001]
[1723636765872,0.3679498,61281.0,61280.0,0.00100001]
[1723636766068,0.37803493,61281.0,61280.0,0.00100001]
[1723636767679,0.3679498,61281.0,61280.0,0.00100001]
[1723636772981,0.3619498,61281.0,61280.0,1e-08]
[1723636773177,0.3619498,61281.0,61280.0,0.04811879]
[1723636774190,0.3629498,61281.0,61280.0,0.04811879]
[1723636774383,0.3629498,61281.0,61280.0,1e-08]
[1723636774584,0.3609498,61281.0,61280.0,1e-08]
[1723636774792,0.3609498,61281.0,61280.0,0.00100001]
[1723636777791,0.3649498,61281.0,61280.0,1e-08]
[1723636778688,0.3679498,61281.0,61280.0,0.01100001]
[1723636778887,0.3689498,61281.0,61280.0,0.01500001]
[1723636779883,0.3689498,61281.0,61280.0,0.15500001]
[1723636780388,0.3689498,61281.0,61280.0,0.21595483]
[1723636780603,0.3649498,61281.0,61280.0,0.20395483]
[1723636780779,0.3649498,61281.0,61280.0,0.20095483]
[1723636781491,0.3649498,61281.0,61280.0,0.14000001]
[1723636781677,0.3649498,61281.0,61280.0,0.22062796]
[1723636781885,0.3649498,61281.0,61280.0,0.14000001]
[1723636782591,0.3659498,61281.0,61280.0,0.14000001]
[1723636783487,0.3649498,61281.0,61280.0,0.14000001]
[1723636783988,0.3649498,61281.0,61280.0,1e-08]
[1723636784687,0.3609498,61281.0,61280.0,1e-08]
[1723636784883,0.3659498,61281.0,61280.0,1e-08]
[1723636785492,0.3659498,61281.0,61280.0,0.06455707]
[1723636785685,0.3659498,61281.0,61280.0,0.04942329]
[1723636785992,0.01043323,61285.0,61280.0,0.36180001]
[1723636786190,0.06484871,61294.0,61280.0,0.36180001]
[1723636786191,0.12119341,61314.0,61284.0,0.88330851]
[1723636786392,0.3608,61315.0,61284.0,0.88330851]
[1723636786393,0.3608,61315.0,61311.0,0.04827119]
[1723636786689,0.3608,61315.0,61308.0,0.06435901]
[1723636786690,0.3608,61315.0,61314.0,0.04827119]
[1723636786992,0.3608,61315.0,61308.0,0.22844]
[1723636786993,0.3608,61315.0,61311.0,0.06435901]
[1723636787384,0.3608,61315.0,61309.0,0.04820588]
[1723636788288,0.3728,61315.0,61314.0,0.001]
[1723636789999,0.3638,61315.0,61309.0,0.04920588]
[1723636790388,0.3638,61315.0,61309.0,0.001]
[1723636790587,0.3608,61310.0,61309.0,0.001]
[1723636791289,0.3608,61310.0,61307.0,0.0002447]
[1723636792087,0.3718,61310.0,61309.0,0.001]
[1723636793192,0.3608,61310.0,61307.0,0.0012447]
[1723636793391,0.3688,61310.0,61307.0,0.0012447]
[1723636794190,0.016,61310.0,61309.0,0.001]
[1723636794387,0.016,61310.0,61307.0,0.0012447]
[1723636794589,0.016,61310.0,61307.0,0.0022447]
[1723636794787,0.016,61310.0,61307.0,0.0652447]
[1723636794987,0.016,61310.0,61309.0,0.2821]
[1723636795283,0.008,61310.0,61309.0,0.2821]
[1723636795689,0.3608,61315.0,61309.0,0.2821]
[1723636796287,0.0633447,61319.0,61309.0,0.2821]
[1723636796981,0.0633447,61319.0,61318.0,0.2821]
[1723636798692,0.0713447,61319.0,61318.0,0.2831]
[1723636800295,0.0713447,61319.0,61318.0,0.29330003]
[1723636800690,0.0853447,61319.0,61318.0,0.29430003]
[1723636801795,0.0853447,61319.0,61318.0,0.002]
[1723636801991,0.0853447,61319.0,61318.0,0.2841]
[1723636803397,0.0853447,61319.0,61318.0,0.0120258]
[1723636803596,0.0853447,61319.0,61307.0,0.0632447]
[1723636803597,0.9745847,61319.0,61307.0,0.0002447]
[1723636803898,0.3608,61308.0,61307.0,0.0002447]
[1723636805002,0.3608,61308.0,61307.0,0.0022447]
[1723636805201,0.3608,61308.0,61307.0,0.2843447]
[1723636805701,0.4410647,61319.0,61307.0,1.3136647]
[1723636805895,0.4410647,61319.0,61318.0,0.1821]
[1723636805896,0.4321447,61319.0,61318.0,0.1821]
[1723636806800,0.3690447,61319.0,61318.0,0.1821]
[1723636808696,0.3610447,61319.0,61318.0,0.1821]
[1723636809199,0.3610447,61319.0,61314.0,0.00826618]
[1723636809391,0.3610447,61319.0,61312.0,0.2821]
[1723636809902,0.3610447,61319.0,61312.0,0.2903717]
[1723636810092,0.3820447,61319.0,61318.0,0.002]
[1723636810499,0.8712847,61319.0,61318.0,0.002]
[1723636810696,0.023,61319.0,61318.0,0.3628]
[1723636811001,0.3608,61336.0,61318.0,0.3628]
[1723636811002,0.3608,61329.0,61318.0,0.07416317]
[1723636811208,0.3608,61329.0,61326.0,0.2821]
[1723636812006,0.3608,61329.0,61321.0,0.0002447]
[1723636813501,0.3668,61329.0,61326.0,0.001]
[1723636814804,0.3668,61329.0,61325.0,0.2821]
[1723636816713,0.3608,61329.0,61325.0,0.2821]
[1723636817202,0.3608,61329.0,61326.0,0.001]
[1723636817403,0.4892,61328.0,61321.0,0.0002447]
[1723636817602,0.3608,61322.0,61321.0,0.0002447]
[1723636818010,1.25004,61322.0,61321.0,0.0002447]
[1723636818204,0.3608,61322.0,61321.0,0.0002447]
[1723636818407,1.25004,61322.0,61321.0,0.0002447]
[1723636818709,1.33110167,61322.0,61304.0,0.04820008]
[1723636818901,1.33110167,61322.0,61303.0,0.06402352]
[1723636818902,0.3528,61305.0,61303.0,0.00088]
[1723636819108,0.3608,61323.0,61304.0,0.344]
[1723636819310,0.3608,61323.0,61318.0,0.34636615]
[1723636819517,0.3608,61323.0,61319.0,0.06426615]
[1723636819809,0.3608,61323.0,61311.0,0.09639923]
[1723636819810,0.7216,61323.0,61317.0,0.04820213]
[1723636820113,0.7216,61323.0,61314.0,0.0002447]
[1723636820114,0.3608,61318.0,61314.0,0.0002447]
[1723636820418,0.3608,61315.0,61314.0,0.0002447]
[1723636822303,0.85008,61315.0,61314.0,0.0002447]
[1723636822506,0.85008,61315.0,61314.0,1e-08]
[1723636822507,1.25008,61315.0,61314.0,1e-08]
[1723636823208,0.3608,61320.0,61314.0,0.40041644]
[1723636823408,0.3608,61320.0,61315.0,0.04821643]
[1723636823611,0.3608,61320.0,61316.0,0.04821643]
[1723636823809,0.3608,61320.0,61315.0,0.04821643]
[1723636824005,0.3608,61320.0,61314.0,0.40041644]
[1723636824210,0.3608,61315.0,61314.0,0.40041644]
[1723636824410,0.3608,61315.0,61314.0,0.40141644]
[1723636824912,0.3608,61315.0,61314.0,0.04920517]
[1723636825112,0.3608,61315.0,61314.0,0.00100001]
[1723636825410,0.3608,61315.0,61314.0,0.00200001]
[1723636825411,1.25608,61315.0,61314.0,0.00200001]
[1723636828410,1.25608,61315.0,61314.0,0.00100001]
[1723636828612,1.25008,61315.0,61314.0,0.00200001]
[1723636828813,1.25608,61315.0,61314.0,0.00200001]
[1723636829816,1.25608,61315.0,61302.0,0.04820516]
[1723636830012,0.3608,61303.0,61300.0,0.19196615]
[1723636830209,0.3668,61315.0,61302.0,0.41646615]
[1723636830404,0.3668,61315.0,61308.0,0.04817908]
[1723636830918,0.3608,61315.0,61310.0,0.04817908]
[1723636831807,0.3608,61315.0,61309.0,0.04817908]
[1723636832013,0.3668,61315.0,61314.0,0.001]
[1723636832323,0.7668,61315.0,61314.0,0.001]
[1723636832512,0.7668,61315.0,61305.0,0.0002447]
[1723636832513,1.25608,61315.0,61305.0,0.0002447]
[1723636832820,0.3608,61306.0,61305.0,0.0002447]
[1723636833423,1.25016,61306.0,61305.0,0.0002447]
[1723636834414,1.25016,61306.0,61305.0,1e-08]
[1723636834415,1.38116,61306.0,61305.0,1e-08]
[1723636836715,0.98116,61306.0,61305.0,1e-08]
[1723636837215,0.98216,61306.0,61305.0,0.00100001]
[1723636837415,0.5018,61306.0,61305.0,0.00200001]
[1723636837618,0.4365,61306.0,61305.0,0.00200001]
[1723636837913,1.32486,61306.0,61305.0,0.00100001]
[1723636838121,1.32486,61306.0,61287.0,0.04817908]
[1723636838423,0.3608,61292.0,61285.0,0.11457908]
[1723636838617,0.3608,61292.0,61286.0,0.04817908]
[1723636838821,0.3608,61292.0,61285.0,0.0664]
[1723636838822,0.3608,61292.0,61288.0,0.04817908]
[1723636839211,0.3608,61292.0,61285.0,0.13066615]
[1723636839212,0.3608,61292.0,61289.0,0.04817908]
[1723636839415,0.3608,61292.0,61290.0,0.3522]
[1723636839712,0.3608,61292.0,61290.0,0.84168]
[1723636839913,0.0002447,61296.0,61291.0,0.48948]
[1723636840211,0.3608,61301.0,61291.0,0.48948]
[1723636840212,0.001,61306.0,61295.0,0.3608]
[1723636840410,0.001,61306.0,61305.0,0.3522]
[1723636840610,0.01,61306.0,61305.0,0.55224917]
[1723636840813,0.01,61306.0,61305.0,1.44160917]
[1723636841016,0.01,61306.0,61305.0,1.39356]
[1723636841212,0.0002447,61312.0,61305.0,1.45764603]
[1723636841516,0.0002447,61312.0,61311.0,0.3522]
[1723636841714,0.0002447,61312.0,61311.0,0.7522]
[1723636841919,0.0002447,61312.0,61311.0,0.3522]
[1723636842118,0.0002447,61312.0,61311.0,0.40027827]
[1723636842419,0.0002447,61312.0,61310.0,0.04807827]
[1723636842821,0.0002447,61312.0,61308.0,0.04807827]
[1723636843212,0.3608,61309.0,61308.0,0.04810514]
[1723636843628,0.3608,61309.0,61306.0,0.04810514]
[1723636844121,0.0002447,61312.0,61306.0,0.04810514]
[1723636844122,0.3608,61310.0,61306.0,0.04810514]
[1723636844422,0.3608,61309.0,61307.0,0.04810514]
[1723636844629,0.0002447,61312.0,61306.0,0.0647]
[1723636844630,0.3608,61310.0,61308.0,0.04810514]
[1723636844922,0.0002447,61312.0,61309.0,0.04810514]
[1723636845123,0.0002447,61312.0,61310.0,0.04810514]
[1723636845719,0.0002447,61312.0,61308.0,0.06408603]
[1723636845720,0.0002447,61312.0,61311.0,0.04810514]
[1723636845920,0.0002447,61312.0,61310.0,0.04810514]
[1723636846128,0.0002447,61312.0,61311.0,0.04810514]
[1723636846722,0.0002447,61312.0,61311.0,0.04814766]
[1723636846918,0.0002447,61312.0,61309.0,0.06408603]
[1723636847316,0.0002447,61312.0,61310.0,0.06408603]
[1723636847522,0.0002447,61312.0,61311.0,0.41628603]
[1723636847823,0.0002447,61312.0,61311.0,0.3522]
[1723636848138,0.0002447,61312.0,61311.0,1.24152]
[1723636848326,0.0012447,61312.0,61311.0,1.24152]
[1723636848521,0.0012447,61312.0,61311.0,0.9022]
[1723636848727,0.0022447,61312.0,61311.0,1.45382]
[1723636849521,0.0022447,61312.0,61311.0,1.30382]
[1723636850132,0.0022447,61312.0,61311.0,1.45382]
[1723636850422,0.0022447,61312.0,61311.0,1.05382]
[1723636850620,0.0022447,61312.0,61311.0,0.3522]
[1723636851022,0.0022447,61312.0,61311.0,0.41639601]
[1723636851223,0.0022447,61312.0,61310.0,0.06519601]
[1723636851420,0.0022447,61312.0,61311.0,0.0481504]
[1723636851624,0.0022447,61312.0,61310.0,0.0491504]
[1723636851928,0.0012447,61312.0,61311.0,0.0481504]
[1723636852327,0.0012447,61312.0,61310.0,0.0491504]
[1723636852732,0.0012447,61312.0,61310.0,0.0481504]
[1723636853024,0.0002447,61312.0,61310.0,0.0481504]
[1723636853229,0.0002447,61312.0,61311.0,0.0481504]
[1723636853430,0.0012447,61312.0,61311.0,0.0481504]
[1723636853927,0.0012447,61312.0,61311.0,0.001]
[1723636854726,0.0002447,61312.0,61311.0,0.001]
[1723636855028,0.0012447,61312.0,61311.0,0.001]
[1723636856918,0.0012447,61312.0,61310.0,0.001]
[1723636857532,0.0012447,61312.0,61309.0,0.0481504]
[1723636857533,0.0012447,61312.0,61311.0,0.001]
[1723636858231,0.0012447,61312.0,61309.0,0.0481504]
[1723636858429,0.0012447,61312.0,61310.0,0.001]
[1723636858735,0.0002447,61312.0,61310.0,0.001]
[1723636859636,0.0022447,61312.0,61310.0,0.001]
[1723636860431,0.8915647,61312.0,61304.0,0.0481504]
[1723636860729,0.8915647,61312.0,61299.0,0.0483951]
[1723636860730,0.7216,61305.0,61299.0,0.0483951]
[1723636861032,0.3608,61300.0,61299.0,0.0002447]
[1723636864234,1.2502,61300.0,61299.0,1e-08]
[1723636864430,1.2502,61300.0,61299.0,0.00700001]
[1723636864632,1.2502,61300.0,61299.0,0.00800001]
[1723636865239,0.8502,61300.0,61299.0,0.00800001]
[1723636865635,0.3608,61300.0,61299.0,0.00800001]
[1723636869129,1.2502,61300.0,61299.0,0.00800001]
[1723636869336,1.2502,61300.0,61290.0,0.0481504]
[1723636869640,0.3608,61291.0,61287.0,0.0481504]
[1723636869841,0.1297,61290.0,61287.0,0.0481504]
[1723636870240,0.1297,61290.0,61286.0,0.0481504]
[1723636870437,0.1297,61290.0,61288.0,0.0481504]
[1723636870939,0.1297,61290.0,61287.0,0.3299504]
[1723636871440,0.1297,61290.0,61287.0,0.2818]
[1723636871839,0.0641,61290.0,61287.0,0.2818]
[1723636872042,0.3608,61291.0,61287.0,0.3299504]
[1723636872540,0.001,61290.0,61288.0,0.013]
[1723636873241,0.002,61290.0,61288.0,0.013]
[1723636873446,0.3608,61289.0,61288.0,0.013]
[1723636874343,0.3608,61289.0,61288.0,0.0751504]
[1723636874731,0.3608,61289.0,61288.0,0.014]
[1723636874938,0.3608,61289.0,61288.0,0.0785]
[1723636876237,0.3608,61289.0,61288.0,0.0915]
[1723636876238,0.3618,61289.0,61288.0,0.0915]
[1723636877345,0.001,61289.0,61288.0,0.0915]
[1723636877540,0.002,61289.0,61288.0,0.0915]
[1723636880040,0.002,61289.0,61288.0,0.09967852]
[1723636880747,0.002,61289.0,61288.0,0.18001121]
[1723636880936,0.002,61289.0,61288.0,0.09967852]
[1723636881139,0.3545553,61293.0,61288.0,1.5496321]
[1723636881345,0.0002447,61295.0,61292.0,0.2818]
[1723636881645,0.0002447,61295.0,61293.0,0.1276]
[1723636881942,0.0002447,61295.0,61294.0,0.08030478]
[1723636882135,0.0002447,61295.0,61294.0,1.05933045]
[1723636882336,0.0002447,61295.0,61294.0,1.55572968]
[1723636882542,0.0002447,61295.0,61294.0,1.45933045]
[1723636882845,0.0002447,61295.0,61294.0,1.53241259]
[1723636883547,0.0002447,61295.0,61294.0,1.45933045]
[1723636884345,0.0002447,61295.0,61294.0,1.15567762]
[1723636884841,0.0002447,61295.0,61294.0,1.05933045]
[1723636885041,0.0002447,61295.0,61294.0,1.15567762]
[1723636885437,0.0002447,61295.0,61294.0,0.41989045]
[1723636885651,0.0012447,61295.0,61294.0,0.07124569]
[1723636885946,0.0012447,61295.0,61294.0,0.007]
[1723636887343,0.0012447,61295.0,61294.0,0.019]
[1723636888149,0.95561403,61295.0,61292.0,0.014]
[1723636888349,0.3608,61293.0,61284.0,0.04821476]
[1723636888550,0.3608,61293.0,61282.0,0.0002447]
[1723636888551,0.3608,61285.0,61282.0,0.0002447]
[1723636888745,0.3608,61283.0,61282.0,0.0002447]
[1723636889752,0.4217,61283.0,61282.0,1e-08]
[1723636890658,0.4217,61283.0,61277.0,0.00016545]
[1723636890659,1.31122,61283.0,61277.0,0.00016545]
[1723636890852,0.3608,61278.0,61277.0,0.00016545]
[1723636892448,0.3608,61278.0,61271.0,0.0002447]
[1723636892650,0.3608,61272.0,61271.0,0.0002447]
[1723636893548,0.3608,61272.0,61262.0,0.04821476]
[1723636893549,1.25060545,61272.0,61262.0,0.04821476]
[1723636893754,0.3608,61263.0,61260.0,0.04821476]
[1723636893955,0.3608,61263.0,61258.0,0.04821476]
[1723636894156,0.3608,61263.0,61257.0,0.343]
[1723636894555,0.3608,61265.0,61257.0,0.343]
[1723636894752,0.3608,61265.0,61258.0,0.04821476]
[1723636895053,0.3608,61265.0,61257.0,0.2818]
[1723636895054,0.3608,61259.0,61257.0,0.33818844]
[1723636895365,0.3608,61259.0,61257.0,0.28997368]
[1723636896861,0.3608,61259.0,61257.0,0.00817368]
[1723636897157,0.3608,61259.0,61254.0,0.00016323]
[1723636897547,0.3608,61259.0,61254.0,0.00831574]
[1723636898552,0.3618,61259.0,61254.0,0.00831574]
[1723636900960,0.3628,61259.0,61257.0,0.009]
[1723636901359,0.3618,61259.0,61254.0,0.01731574]
[1723636901567,0.3628,61259.0,61254.0,0.01731574]
[1723636901761,0.002,61259.0,61258.0,0.6426]
[1723636902066,0.002,61259.0,61258.0,0.2818]
[1723636902277,0.3628,61259.0,61258.0,0.2818]
[1723636902460,0.002,61259.0,61258.0,0.2818]
[1723636903270,0.3628,61259.0,61258.0,0.2818]
[1723636903465,0.002,61259.0,61258.0,0.2818]
[1723636904259,0.001,61259.0,61258.0,0.2818]
[1723636904771,0.3618,61259.0,61254.0,0.00831574]
[1723636906066,0.3618,61259.0,61258.0,0.009]
[1723636906067,0.3628,61259.0,61258.0,0.009]
[1723636908688,0.3628,61259.0,61258.0,0.2908]
[1723636908889,0.3618,61259.0,61258.0,0.2818]
[1723636909185,0.3638,61259.0,61258.0,0.2908]
[1723636910481,0.3608,61265.0,61258.0,1.35052]
[1723636910680,0.3608,61265.0,61264.0,0.2818]
[1723636910988,0.3608,61265.0,61264.0,0.28985412]
[1723636911283,0.3608,61265.0,61258.0,0.009]
[1723636911480,0.3608,61259.0,61258.0,0.009]
[1723636911982,0.3608,61259.0,61258.0,0.01709247]
[1723636912490,0.0609,61264.0,61258.0,0.01709247]
[1723636912785,0.3618,61265.0,61259.0,0.04821476]
[1723636913288,0.3618,61265.0,61262.0,0.04821476]
[1723636913477,0.3618,61265.0,61260.0,0.04821476]
[1723636913784,0.7226,61265.0,61259.0,0.04821476]
[1723636913988,0.3608,61260.0,61259.0,0.04821476]
[1723636914188,0.3608,61260.0,61258.0,0.01709247]
[1723636914388,0.3608,61260.0,61258.0,0.06529272]
[1723636914584,0.3608,61260.0,61258.0,0.01709247]
[1723636915187,0.3608,61260.0,61259.0,0.04820025]
[1723636915588,0.3618,61260.0,61259.0,0.04820025]